Cogmind - Beta 15 @@@ ROGUE MODE // 2025.06.30 @ 13:32:38 Player: McSaucyNugget Result: Self-destructed Performance ------------- Evolutions (1) 500 Regions Visited (5) 1000 Robots Destroyed (21) 105 Value Destroyed (556) 556 Prototype IDs (25) 500 Alien Tech Used (0) 0 Bonus (321) 321 TOTAL SCORE: 2982 Bonus ------- Follower Combat Kills 21 Aligned with FarCom 300 Cogmind --------- Core Integrity 276/400 Matter 300/300 Energy 275/275 System Corruption 0% Temperature Cool (0) Movement Rolling (125) Ox2 Location -9/Exiles Parts ------- > --- POWER (1) -------- Deuterium Engine > --- PROPULSION (2) --- Compact Wheel Armored Wheel > --- UTILITY (4) ------ Heat Sink Cooling System High-capacity Storage Unit Medium Armor Plating > --- WEAPON (2) ------- Precision Beam Rifle Advanced Beam Cannon > --- INVENTORY (20) --- Deuterium Engine Deuterium Engine Wheel Compact Wheel Compact Wheel Compact Wheel Cooling System Sensor Array Signal Interpreter Light Armor Plating Light Armor Plating Hacking Suite Hacking Suite Precision Beam Rifle Precision Beam Rifle Heavy Assault Rifle Shotgun Rocket Launcher Rocket Launcher Hammer Peak State ------------ > --- POWER ------------ Deuterium Engine > --- PROPULSION ------- Compact Wheel Armored Wheel > --- UTILITY ---------- Heat Sink Cooling System High-capacity Storage Unit Medium Armor Plating > --- WEAPON ----------- Precision Beam Rifle Advanced Beam Cannon > --- INVENTORY -------- Deuterium Engine Deuterium Engine Wheel Compact Wheel Compact Wheel Compact Wheel Cooling System Sensor Array Signal Interpreter Light Armor Plating Hacking Suite Hacking Suite Precision Beam Rifle Precision Beam Rifle Heavy Assault Rifle Heavy Assault Rifle Shotgun Rocket Launcher Rocket Launcher Hammer [Rating: 23] Favorites ----------- Power Deuterium Engine Engine Deuterium Engine Propulsion Compact Wheel Treads Light Treads Wheel Compact Wheel Utility High-capacity Storage Unit Device Heat Sink Storage High-capacity Storage Unit Protection Light Armor Plating Weapon Advanced Beam Cannon Energy Gun Precision Beam Rifle Energy Cannon Advanced Beam Cannon Ballistic Gun Assault Rifle Launcher Grenade Launcher Build | -11 -10 -10 -9 -9 -9 ------- Run | Yrd Mat Min Mat Min Exi Slots Evolved 2 | . . . 2 . . Power . | . . . . . . Propulsion . | . . . . . . Utility 2 | . . . 2 . . Weapon . | . . . . . . Parts Attached 34 | 6 7 8 11 2 . Power 5 | 1 1 2 1 . . Engine 5 | 1 1 2 1 . . Core . | . . . . . . Reactor . | . . . . . . Propulsion 8 | 2 2 1 3 . . Treads 2 | 2 . . . . . Leg . | . . . . . . Wheel 6 | . 2 1 3 . . Hover . | . . . . . . Flight . | . . . . . . Utility 10 | 1 1 1 5 2 . Device 4 | . . 1 3 . . Storage 2 | 1 1 . . . . Processor . | . . . . . . Hackware . | . . . . . . Protection 4 | . . . 2 2 . Artifact . | . . . . . . Weapon 11 | 2 3 4 2 . . Energy Gun 5 | 2 1 1 1 . . Energy Cannon 2 | . 2 . . . . Ballistic Gun 3 | . . 2 1 . . Ballistic Cannon . | . . . . . . Launcher 1 | . . 1 . . . Special Weapon . | . . . . . . Impact Weapon . | . . . . . . Slashing Weapon . | . . . . . . Piercing Weapon . | . . . . . . Special Melee Weapon . | . . . . . . Unidentified Prototypes 2 | . 1 . 1 . . Parts Lost 7 | . . 5 2 . . Power 2 | . . 2 . . . Propulsion 1 | . . 1 . . . Utility 2 | . . . 2 . . Weapon 2 | . . 2 . . . Highest Loss Streak 3 | . . 3 1 . . To Critical Strikes . | . . . . . . Average Backups 16 | 3 9 15 19 20 20 Power 1 | . 1 1 1 2 2 Propulsion 4 | 2 2 5 4 4 4 Utility 4 | . 1 3 5 6 7 Weapon 6 | . 4 6 7 7 7 Tool/Special . | . . . . . . Unused Backups 26 | . 2 . 4 1 19 Power 3 | . 1 . . . 2 Propulsion 7 | . 1 . 2 . 4 Utility 7 | . . . . 1 6 Weapon 9 | . . . 2 . 7 Tool/Special . | . . . . . . Average Slot Usage (%) 91 | . 85 85 94 100 100 Engine 12 | . 14 13 11 11 11 Treads 1 | . 8 . . . . Wheel 23 | . 19 27 22 22 22 Device 11 | . . 1 19 22 22 Storage 12 | . 14 14 11 11 11 Protection 5 | . . . 8 11 11 Energy Gun 9 | . 2 11 10 11 11 Energy Cannon 12 | . 25 10 9 11 11 Ballistic Gun 2 | . . 5 2 . . Peak Build Rating 23 | 6 13 13 22 23 22 Average Rating 15 | 3 11 11 18 22 22 On Entrance 12 | . 6 12 12 22 22 Naked Turns . | . . . . . . Heaviest Build 65 | 11 60 54 61 65 65 Greatest Support 40 | 40 40 26 32 28 28 Greatest Overweight (x) 3 | . 2 3 2 2 2 Average Overweight (x) 1 | . 1 1 1 2 2 Largest Inventory Capacity 20 | 8 20 20 20 20 20 Average Capacity 18 | 6 16 20 20 20 20 Most Carried 20 | 6 14 19 20 20 20 Average Carried 16 | 3 9 15 19 19 20 Final Capacity 20 | 8 20 20 20 20 20 Final Carried 20 | 6 14 16 20 20 20 Class Distribution -------------------- 100% | Mutant Dominant Class ---------------- Mutant | -10/Materials Mutant | -10/Mines Mutant | -9/Materials Mutant | -9/Mines Mutant | -9/Exiles Resources | -11 -10 -10 -9 -9 -9 ----------- Run | Yrd Mat Min Mat Min Exi Matter Collected 634 | 260 32 193 99 50 . Remotely . | . . . . . . Salvage Created 925 | . 68 408 449 . . Parts 50 | . 3 15 32 . . Haulers Intercepted . | . . . . . . Recyclers Shooed . | . . . . . . Parts Field Recycled . | . . . . . . Retrieved Matter . | . . . . . . Parts Self-Destructed . | . . . . . . Prevented . | . . . . . . Kills | -11 -10 -10 -9 -9 -9 ------- Run | Yrd Mat Min Mat Min Exi Combat Hostiles Destroyed 29 | . 1 19 9 . . Guns 11 | . . 5 6 . . Cannons 14 | . 1 12 1 . . AOE 2 | . . 2 . . . Classes Destroyed 8 | . 3 4 1 . . Tunneler 1 | . . 1 . . . Recycler 2 | . . 2 . . . Operator 2 | . 1 . 1 . . Watcher 1 | . 1 . . . . Swarmer 5 | . . 5 . . . Grunt 4 | . 1 . 3 . . Sentry 6 | . . . 6 . . Assembled 14 | . . 14 . . . Best Kill Streak 4 | . 1 4 2 . . Combat Bots Only 4 | . 1 4 2 . . Max Kills in Single Turn 1 | . 1 1 1 . . Gunslinging . | . . . . . . Exploded 1 | . . 1 . . . Melee . | . . . . . . Uniques/NPCs Destroyed . | . . . . . . Combat | -11 -10 -10 -9 -9 -9 -------- Run | Yrd Mat Min Mat Min Exi Hostile Shots Fired 131 | . 5 64 62 . . Missed 42 | . 3 11 28 . . Hits 89 | . 2 53 34 . . Melee 6 | . . 6 . . . Projectile 83 | . 2 47 34 . . AOE 8 | . . 8 . . . Critical Strikes 4 | . . 1 3 . . Damage Taken 1465 | . 21 917 518 9 . Core 369 | . 10 235 124 . . Absorbed by Shields . | . . . . . . Core Remaining (%) 51 | 100 . 2 . . . Volleys Fired 78 | . 8 42 24 2 2 Largest 2 | . 2 2 2 2 2 Hottest 136 | . 136 136 129 129 129 Shots Fired 152 | . 16 80 48 4 4 Gun 77 | . . 46 27 2 2 Cannon 72 | . 16 31 21 2 2 Launcher 3 | . . 3 . . . Special . | . . . . . . Kinetic 22 | . . 19 3 . . Thermal 127 | . 16 58 45 4 4 Explosive 3 | . . 3 . . . Electromagnetic . | . . . . . . Robot Hit Streak 30 | . 8 11 30 1 . Robot Miss Streak 3 | . 2 3 1 1 . Penetration Max . | . . . . . . Secondary Targets . | . . . . . . Shots Hit Robots 101 | . 11 53 35 2 . Core Hits 49 | . 3 31 14 1 . Critical Kills 1 | . . . 1 . . Critical Parts Destroyed . | . . . . . . Critical Strikes 4 | . . 2 2 . . Burn 3 | . . 2 1 . . Meltdown 1 | . . . 1 . . Melee Attacks . | . . . . . . Impact . | . . . . . . Slashing . | . . . . . . Piercing . | . . . . . . Sneak Attacks . | . . . . . . Combat Hostiles . | . . . . . . Follow-up Attacks . | . . . . . . Damage Inflicted 1863 | . 222 947 659 35 . Guns 809 | . . 382 392 35 . Cannons 941 | . 222 452 267 . . Explosions 113 | . . 113 . . . Melee . | . . . . . . Ramming . | . . . . . . Kinetic 127 | . . 109 18 . . Thermal 1623 | . 222 725 641 35 . Explosive 113 | . . 113 . . . Electromagnetic . | . . . . . . Impact . | . . . . . . Slashing . | . . . . . . Piercing . | . . . . . . Highest Corruption . | . . . . . . Average Corruption . | . . . . . . Corruption Purged . | . . . . . . Corruption Blocked . | . . . . . . Overload Shots . | . . . . . . Overflow Damage 15 | . 10 5 . . . Projectiles 15 | . 10 5 . . . Explosions . | . . . . . . Melee . | . . . . . . Knockbacks . | . . . . . . Impact . | . . . . . . Kinetic . | . . . . . . Secondary . | . . . . . . Self-Inflicted Damage . | . . . . . . Shots . | . . . . . . Rammed . | . . . . . . Targets Rammed . | . . . . . . Kicked . | . . . . . . Crushed . | . . . . . . Highest Temperature 325 | . 318 325 255 . . Average Temperature 91 | . 102 95 76 . . Received Heat Transfer 438 | . 12 180 246 . . Siege Activations . | . . . . . . Martial Activations . | . . . . . . Shielding Activations . | . . . . . . Robots Disrupted . | . . . . . . Combat Hostiles . | . . . . . . Robots Corrupted . | . . . . . . Combat Hostiles . | . . . . . . Parts Fried . | . . . . . . Impact Corruptions . | . . . . . . Robots Melted 2 | . . . 2 . . Combat Hostiles 2 | . . . 2 . . Parts Melted 9 | . 2 . 7 . . Heat Transferred 3515 | . 407 1665 1369 74 . Parts Sabotaged . | . . . . . . Parts Stolen . | . . . . . . Parts Stripped . | . . . . . . Power Chain Reactions . | . . . . . . Alert | -11 -10 -10 -9 -9 -9 ------- Run | Yrd Mat Min Mat Min Exi Maximum Alert Level . | . . . . . . Low Security (%) 100 | 100 100 100 100 100 . Level 1 . | . . . . . . Level 2 . | . . . . . . Level 3 . | . . . . . . Level 4 . | . . . . . . Level 5 . | . . . . . . High Security . | . . . . . . Max Security . | . . . . . . Peak Influence 95 | . 35 70 64 95 . Initial 24 | . . 1 . 24 . Average 13 | . 6 9 21 17 . Influence Increases 635 | . 58 136 346 95 . Destroy 0b10 Robot/C 360 | . 20 100 180 60 . Destroy 0b10 Robot/NC 30 | . 10 15 5 . . Destroy Leader 102 | . 12 10 70 10 . Allied During Kill 10 | . . . . 10 . Successful Hack 14 | . . . 14 . . Disable Machine 30 | . 15 . 15 . . Destroy Structure 14 | . 1 11 2 . . Lose Combat Pursuer 75 | . . . 60 15 . Influence Decreases 635 | . 53 141 282 104 55 Entered New Map 99 | . . 4 . 40 55 Time Decay 459 | . 53 120 242 44 . Lost Part 37 | . . 17 20 . . Lost Ally 20 | . . . . 20 . Purge Threat 20 | . . . 20 . . Squads Dispatched 1 | . 1 . . . . Investigation . | . . . . . . Extermination . | . . . . . . Reinforcement 1 | . 1 . . . . Assault . | . . . . . . Garrison . | . . . . . . Intercept . | . . . . . . Searches Triggered . | . . . . . . Construction Impeded . | . . . . . . Haulers Reinforced . | . . . . . . Active Scanning Responses . | . . . . . . Cargo Convoy Interrupts . | . . . . . . Stealth | -11 -10 -10 -9 -9 -9 --------- Run | Yrd Mat Min Mat Min Exi Distress Signals 3 | . . . 3 . . Communications Jammed . | . . . . . . Distress Signals . | . . . . . . Times Spotted 54 | . 3 25 23 3 . Peak Tracking Total 10 | . 3 4 10 2 . Tactical Retreats 4 | . . 2 1 1 . Traps | -11 -10 -10 -9 -9 -9 ------- Run | Yrd Mat Min Mat Min Exi Traps Triggered 2 | . . . 2 . . Indirectly . | . . . . . . Trap Hack Attempts . | . . . . . . Triggered . | . . . . . . Disarmed . | . . . . . . Reprogrammed . | . . . . . . Reused . | . . . . . . Traps Extracted . | . . . . . . Installed . | . . . . . . Triggered . | . . . . . . Machines | -11 -10 -10 -9 -9 -9 ---------- Run | Yrd Mat Min Mat Min Exi Machines Disabled 3 | . 1 . 1 1 . Max in Single Turn 1 | . 1 . 1 1 . Machines Repaired . | . . . . . . Machines Dismantled . | . . . . . . Machines Sabotaged . | . . . . . . Overloaded Fab Kills . | . . . . . . Hacking | -11 -10 -10 -9 -9 -9 --------- Run | Yrd Mat Min Mat Min Exi Machines Accessed 7 | . . . 5 . 2 Terminals 5 | . . . 5 . . Fabricators . | . . . . . . Repair Stations . | . . . . . . Recycling Units . | . . . . . . Scanalyzers . | . . . . . . Garrison Access . | . . . . . . Total Hacks 14 | . . . 6 . 8 Successful 13 | . . . 5 . 8 Failed 1 | . . . 1 . . Catastrophic . | . . . . . . Database Lockouts . | . . . . . . Manual 1 | . . . . . 1 Terminals 6 | . . . 6 . . Fabricators . | . . . . . . Repair Stations . | . . . . . . Recycling Units . | . . . . . . Scanalyzers . | . . . . . . Garrison Access . | . . . . . . Terminal Hacks 13 | . . . 5 . 8 Record 8 | . . . 1 . 7 Unreport Threat 1 | . . . 1 . . Recall Reinforcements 1 | . . . 1 . . Hauler Manifests 1 | . . . 1 . . Zone Layout 1 | . . . 1 . . Proto ID Catalog 1 | . . . . . 1 Fabricator Hacks . | . . . . . . Repair Station Hacks . | . . . . . . Recycling Unit Hacks . | . . . . . . Scanalyzer . | . . . . . . Garrison Access Hacks . | . . . . . . Unauthorized Hacks . | . . . . . . Terminals . | . . . . . . Fabricators . | . . . . . . Repair Stations . | . . . . . . Recycling Units . | . . . . . . Scanalyzers . | . . . . . . Garrison Access . | . . . . . . Data Cores Recovered . | . . . . . . Used . | . . . . . . Hacking Detections 3 | . . . 3 . . Full Trace Events . | . . . . . . Feedback Events . | . . . . . . Feedback Blocked . | . . . . . . Robot Schematics Acquired . | . . . . . . Robots Built . | . . . . . . Authchips . | . . . . . . Time . | . . . . . . Total Robot Build Rating . | . . . . . . Part Schematics Acquired . | . . . . . . Parts Built . | . . . . . . Authchips . | . . . . . . Time . | . . . . . . Total Part Build Rating . | . . . . . . Parts Repaired . | . . . . . . Time . | . . . . . . Parts Recycled . | . . . . . . Recycled Matter . | . . . . . . Retrieved Matter . | . . . . . . Retrieved Components . | . . . . . . Parts Scanalyzed . | . . . . . . Part Schematics Acquired . | . . . . . . Parts Damaged . | . . . . . . Bothacking | -11 -10 -10 -9 -9 -9 ------------ Run | Yrd Mat Min Mat Min Exi Used RIF Installer . | . . . . . . Robots Hacked . | . . . . . . Non-combat . | . . . . . . Combat . | . . . . . . Robot Hacks Applied . | . . . . . . Relay Couplers Released . | . . . . . . Fabnet Peak Effective % . | . . . . . . Robots Rewired . | . . . . . . Allies Hacked . | . . . . . . Hacks Repelled . | . . . . . . Allies | -11 -10 -10 -9 -9 -9 -------- Run | Yrd Mat Min Mat Min Exi Total Allies 3 | . . . . 3 . Largest Group 3 | . . . . 3 1 Highest-Rated Group 40 | . . . . 40 16 Highest-Rated Ally 16 | . . . . 16 16 Total Orders . | . . . . . . Ally Attacks 15 | . . . . 15 . Total Damage 134 | . . . . 134 . Kills 4 | . . . . 4 . Allies Corrupted . | . . . . . . Allies Melted . | . . . . . . Intel | -11 -10 -10 -9 -9 -9 ------- Run | Yrd Mat Min Mat Min Exi Active Infowar (turns) 722 | . . 90 632 . . Seismic 722 | . . 90 632 . . Robot Analysis Total . | . . . . . . Derelict Logs Recovered 1 | . . . . 1 . Drone Launches . | . . . . . . Drone Recoveries . | . . . . . . Exploration | -11 -10 -10 -9 -9 -9 ------------- Run | Yrd Mat Min Mat Min Exi Turns Passed 2493 | 131 337 792 778 236 219 Spaces Moved 1678 | 78 225 510 531 164 170 Core 7 | 7 . . . . . Treads 115 | 71 44 . . . . Legs . | . . . . . . Wheels 1556 | . 181 510 531 164 170 Hover . | . . . . . . Flight . | . . . . . . Fastest Speed 50 | 50 120 105 115 125 125 Average Speed 121 | 150 128 115 116 125 125 Slowest Speed 240 | 160 240 145 125 125 125 Overloaded Moves . | . . . . . . Propulsion Burnouts . | . . . . . . Robots Hopped . | . . . . . . Potential Cave-ins . | . . . . . . Cave-ins Triggered . | . . . . . . Exploration Rate (%) 37 | 4 23 77 46 35 41 Regions Visited 5 Branch Regions 3 Pre-discovered Areas . | . . . . . . Known Exits Taken . | . . . . . . Unknown Exits Taken 5 | 1 1 1 1 1 . Scrap Searched 2 | . . 1 . 1 . Spaces Dug . | . . . . . . Terrain Destroyed 15 | . . 15 . . . Melee . | . . . . . . Projectile . | . . . . . . AOE 15 | . . 15 . . . Terrain Rammed . | . . . . . . Walls Destroyed . | . . . . . . Machines Disabled . | . . . . . . Actions | -11 -10 -10 -9 -9 -9 --------- Run | Yrd Mat Min Mat Min Exi Total 1989 | 89 260 631 645 192 172 Wait 137 | . 1 62 53 21 . Move 1673 | 77 224 509 530 163 170 Hop . | . . . . . . Pick Up 36 | 6 10 7 12 1 . Fast Attach 15 | 6 4 1 4 . . Attach 5 | . . 5 . . . Detach 3 | . 3 . . . . Swap 18 | . 3 5 8 2 . Drop 24 | . 7 . 14 3 . Fire 78 | . 8 42 24 2 2 Melee . | . . . . . . Ram . | . . . . . . Kick . | . . . . . . Crush . | . . . . . . Escape Stasis . | . . . . . . Rewire . | . . . . . . Trap . | . . . . . . Miscellaneous . | . . . . . . Route ------- -11/Scrapyard -10/Materials -10/Mines (discovered 2 exits: *Mat / [*Sub]) -9/Materials (discovered 2 exits: [*Mat] / [*Min]) -9/Mines -9/Exiles History --------- Turn | Location | Event 8 | -11/Scrapyard | Discovered new exit (range 16) 132 | -11/Scrapyard | Entered Materials 242 | -10/Materials | Discovered new exit (range 6) 304 | -10/Materials | Build established: Mutant 469 | -10/Materials | Entered Mines 653 | -10/Mines | Assembled infested the area 661 | -10/Mines | Discovered new exit (range 5) 698 | -10/Mines | Core integrity fell below 50% 756 | -10/Mines | Received a Rocket Launcher from a helpful Derelict 1195 | -10/Mines | Core integrity fell below 20% 1237 | -10/Mines | Lost 3 parts (1p1n1w) 1242 | -10/Mines | Discovered new exit (range 9) 1261 | -10/Mines | Entered Materials 1261 | -9/Materials | Evolved 2 slots: Utility x2 1643 | -9/Materials | Discovered new exit (range 13) 1948 | -9/Materials | Discovered new exit (range 5) 2039 | -9/Materials | Entered Mines 2076 | -9/Mines | Assisted by bots powering up and referring to "LRC-V3" 2129 | -9/Mines | Joined a pair of Derelicts in attacking an 0b10 outpost 2193 | -9/Mines | Deemed a non-threat by the Exiles lab entrance 2194 | -9/Mines | Discovered new exit (range 5) 2275 | -9/Mines | Entered Exiles 2275 | -9/Exiles | Accompanied by 1 ally 2309 | -9/Exiles | Met 8R-AWN 2328 | -9/Exiles | Met EX-HEX 2364 | -9/Exiles | Met EX-BIN 2379 | -9/Exiles | Aligned with FarCom system 2380 | -9/Exiles | Given EX-Vault access code 2423 | -9/Exiles | Opened EX-Vault 2480 | -9/Exiles | Exiles lab attacked by MAIN.C 2494 | -9/Exiles | Self-destructed Last Messages --------------- Supersonic Drone Bay Army-in-a-Box PSU Rigger Chronowheel AWS/Thermal Latent Energy Streamer Gui. Plasma Cannon Firepult YOLO Cannon AWS/Gauss XL Autogun Array AWS/Autocannon Field Lobotomy Kit Longsword +1 Deploy-a-Sentry 02480_ EXILES: Incoming Unaware force detected on approach from Mines. Prepare for evacuation. 02487_ EX-BIN seems to be suffering from a case of analysis paralysis. Map ----- +----------------------------------------------------+ | ?????????????????????# #???????????????????? | | ?????????????????????## ##???????????????????? | | ?????????????????????#X #????????????????????? | | ?????????????????????## #????????????????????? | | ??????????????????????# #????????????????????? | | ??????????????????????# #########????????????? | | ??????????????????????# ##""""""#????????????? | | ??????????????????????# ## """#????????????? | | ??????????????????????# X""#????????????? | | ??????????????????????# ## """#????????????? | | ????????????????####??# ##""""""#????????????? | | ???????????????""""""?# #########????????????? | | ???????????????"""" ## #????????????????????? | | ??????????????#""X" #????????????????????? | | ??????????????#" #????????????????????? | | ??????????????#" ## #????????????????????? | | ??????????????#""""""?# #?#########??????????? | | ??????????????##"###??# #?#"""""""#??????????? | | ??????????????? ??????# #?#"""""""#??????????? | | ??????????????????????# #?#"""""""#??????????? | | ?????????????????????## ###"" """"#??????????? | | ?????????????????????#" g """"#??????????? | | ?????????????????????#" """#??????????? | | ?????????????????????#" """#??????????? | | ?????????????????????#" c"""#??????????? | | ?????????????????????#" @ """#??????????? | | ?????????????????????#" """#??????????? | | ?????????????????????## """"??????????? | | ??????????????????????# """#??????????? | | ??????????????????????#" "X" """"??????????? | | ??????????????????????#" """ #??????????? | | ??????????????????????#" """""""""#??????????? | | ?????????????????????##" ###########??????????? | | ????????????????????##"" #????????????????????? | | ??????????????????###"" #????????????????????? | | ?????????????????"""""" ##???????????????????? | | ????????????????"" " "" ##???###########????? | | ???????????????""" " #####"""""""""##???? | | ?????????????? " " """ """"##??? | | ???????????? "" " #??? | | ???????????? " """#??? | | ???????????? " "#??? | | ????????????? " "##?? | | ????????????? ""### | | ????????????? """""" """# | | ?????????????? ######""" "# | | ?????????????? ""#?????#####""" # | | ????????????????"???????????##""" | | ?????????????????????????????#"""" | | ?????????????????????????????#"" | +----------------------------------------------------+ Best States ------------- Heat Dissipation 60 Energy Generation 14 Energy Capacity 275 Matter Stores 300 Matter Capacity 300 Sight Range 16 Terrain Scan Density 10 Armor Coverage 225 Evasion (%) 40 Recoil Reduction 2 Item Schematics ----------------- None Robot Schematics ------------------ None Fabricated ------------ Nothing Repaired ---------- Nothing Alien Tech Used ----------------- None Achievements -------------- None Challenges ------------ None Game ------ Seed GunHeartTube Manual? 0 Play Time 00:22:56 Cumulative 34.3 hours Start 2025.05.11 @ 17:05:15 End 2025.06.30 @ 13:32:38 Sessions 7 Manual Loads 0 Difficulty Rogue Special Mode None Game No. 30 Rogue 30 Adventurer 0 Explorer 0 Win Type - Total 3 Types 2/0/1/0/0/0/0/0/0/0 Lore% 27 Gallery% 35 Achievement% 45 Wizard Run 0 Options --------- Layout 2 ASCII 0 Keyboard 1 Movement Vi Keybinds 0 Fullscreen 1 Font 18/SmallcapsGlow Map View 50x49 Zoom Use 0% Tactical HUD 1 Map Filters NONE Filters NONE Steam X RUN: 8ea36a4e-dd6e-4d63-a354-1fb898a60465